bitfinex/quotes_ETHUSD_20250823
["timestamp","ask_amount","ask_price","bid_price","bid_amount"]
[1755985887440,0.2986,4755.8,4755.7,5.77741101]
[1755985887730,0.2986,4755.8,4755.7,9.27141101]
[1755985888615,0.022,4755.8,4755.7,9.27141101]
[1755985893715,0.0266,4755.8,4755.7,9.27141101]
[1755985894110,0.0266,4755.8,4755.7,6.27141101]
[1755985895128,0.022,4755.8,4755.7,6.27141101]
[1755985895321,0.3295,4755.8,4755.7,6.27141101]
[1755985905463,0.3295,4755.8,4755.7,2.20753987]
[1755985905663,0.3295,4755.8,4755.7,3.5978]
[1755985905854,0.3295,4755.8,4755.7,5.70053987]
[1755985916071,0.3295,4755.8,4755.7,5.69953987]
[1755985920263,0.3295,4755.8,4755.7,5.69853987]
[1755985921269,0.3295,4755.8,4755.7,2.20753987]
[1755985921474,0.3295,4755.8,4755.7,5.69853987]
[1755985923950,0.022,4755.8,4755.7,5.98713987]
[1755985924852,0.3189,4755.8,4755.7,5.69853987]
[1755985925376,0.022,4755.8,4755.7,2.20753987]
[1755985925551,0.0251,4755.8,4755.7,5.69853987]
[1755985925746,0.022,4755.8,4755.7,5.69853987]
[1755985925952,0.022,4755.8,4755.7,2.20753987]
[1755985926278,0.022,4755.8,4755.7,5.69853987]
[1755985926777,0.022,4755.8,4755.7,5.98713987]
[1755985927282,0.022,4755.8,4755.7,5.69853987]
[1755985932756,0.022,4755.8,4755.7,5.98713987]
[1755985933808,0.022,4755.8,4755.7,5.69853987]
[1755985934300,0.022,4755.8,4755.7,5.98713987]
[1755985935486,0.022,4755.8,4755.7,6.41883987]
[1755985935790,0.022,4755.8,4755.7,5.98713987]
[1755985939599,0.022,4755.8,4755.7,6.42703987]
[1755985940083,0.022,4755.8,4755.7,5.98713987]
[1755985940471,0.022,4755.8,4755.7,6.42703987]
[1755985940672,0.022,4755.8,4755.7,6.78130221]
[1755985943015,1.30163957,4755.5,4754.0,0.1048]
[1755985943306,13.83249477,4754.8,4754.0,0.1048]
[1755985943607,21.25351683,4754.8,4754.0,0.1048]
[1755985943783,21.39655733,4754.8,4754.0,0.1048]
[1755985944184,21.72566102,4754.8,4754.0,0.1048]
[1755985944570,20.96920992,4754.8,4754.0,0.1048]
[1755985946287,22.43400032,4754.8,4754.0,0.1048]
[1755985946605,22.78754445,4754.8,4754.0,0.1048]
[1755985946800,22.5915776,4754.8,4754.0,0.1048]
[1755985947010,22.78754474,4754.8,4754.0,0.1048]
[1755985947222,22.5915776,4754.8,4754.0,0.1048]
[1755985947513,23.15590449,4754.8,4754.0,0.1048]
[1755985947888,23.15590449,4754.8,4754.6,0.001]
[1755985948089,22.8268008,4754.8,4754.6,0.001]
[1755985948494,22.26247391,4754.8,4754.6,0.001]
[1755985949408,22.10489663,4754.8,4754.6,0.001]
[1755985950115,21.90825354,4754.8,4754.6,0.001]
[1755985950413,22.10393499,4754.8,4754.6,0.001]
[1755985951722,22.43305653,4754.8,4754.6,0.001]
[1755985953307,22.23737508,4754.8,4754.6,0.001]
[1755985953877,22.09357508,4754.8,4754.6,0.001]
[1755985954084,22.23737508,4754.8,4754.6,0.001]
[1755985955316,22.43285281,4754.8,4754.6,0.001]
[1755985957285,22.28905281,4754.8,4754.6,0.001]
[1755985958692,22.8533797,4754.8,4754.6,0.001]
[1755985959993,21.83430965,4754.8,4754.6,0.001]
[1755985960216,23.04316981,4754.8,4754.6,0.001]
[1755985960609,22.75816982,4754.8,4754.6,0.001]
[1755985960794,21.88089346,4754.8,4754.7,0.3177]
[1755985960994,21.88090598,4754.8,4754.7,0.7576]
[1755985961299,18.36390598,4754.8,4754.7,0.7576]
[1755985961499,21.31795851,4754.8,4754.7,0.7576]
[1755985962007,21.37585851,4754.8,4754.7,0.001]
[1755985962226,21.57144586,4754.8,4754.7,0.001]
[1755985964741,21.51354586,4754.8,4754.7,0.001]
[1755985965017,5.89242053,4754.8,4754.7,0.3177]
[1755985965190,9.30362053,4754.8,4754.7,0.3177]
[1755985965395,12.16320951,4754.8,4754.7,0.7576]
[1755985966108,11.40675841,4754.8,4754.7,0.7576]
[1755985967521,12.16320951,4754.8,4754.7,0.7576]
[1755985968522,11.40675841,4754.8,4754.7,0.7576]
[1755985970004,11.40808912,4754.8,4754.7,0.7576]
[1755985970210,12.54226152,4754.8,4754.7,0.7576]
[1755985970415,11.40808912,4754.8,4754.7,0.7576]
[1755985971234,11.52611798,4754.8,4754.7,0.7576]
[1755985971434,11.52611798,4754.8,4754.3,0.1058]
[1755985971639,1.1330835,4754.5,4754.3,0.1058]
[1755985971840,1.1330835,4754.5,4754.4,0.285]
[1755985972028,8.49574592,4754.5,4754.4,0.285]
[1755985972336,8.61410435,4754.5,4754.4,0.285]
[1755985972632,8.61410435,4754.5,4754.3,0.1058]
[1755985972633,4.48102085,4754.5,4754.3,0.1058]
[1755985972826,3.516,4754.5,4754.4,0.285]
[1755985973029,4.48341324,4754.5,4754.4,0.285]
[1755985973926,4.36505446,4754.5,4754.4,0.285]
[1755985976433,7.36505446,4754.5,4754.4,0.285]
[1755985979843,7.36512746,4754.5,4754.4,0.285]
[1755985980343,7.36512661,4754.5,4754.4,0.285]
[1755985980641,7.36512628,4754.5,4754.4,0.285]
[1755985981814,8.50151954,4754.5,4754.4,0.285]
[1755985982009,1.98551954,4754.5,4754.4,0.285]
[1755985982257,0.84912628,4754.5,4754.4,0.8627]
[1755985982442,1.60678657,4754.5,4754.4,0.8627]
[1755985982743,0.65182632,4754.5,4754.4,0.8627]
[1755985983143,1.21991003,4754.5,4754.4,0.8627]
[1755985984342,0.65182632,4754.5,4754.4,0.8627]
[1755985985646,0.45452518,4754.5,4754.4,0.8627]
[1755985987523,0.65162325,4754.7,4754.4,0.8627]
[1755985987743,0.4541415,4754.6,4754.5,0.4729]
[1755985987922,0.4541415,4754.6,4754.5,0.7579]
[1755985988868,0.4541415,4754.7,4754.5,0.7579]
[1755985989061,0.4541415,4754.6,4754.5,0.7579]
[1755985989232,0.4541415,4754.6,4754.5,0.285]
[1755985989432,0.4541415,4754.7,4754.5,0.285]
[1755985989763,0.4541415,4754.6,4754.5,0.3898]
[1755985989948,0.4541415,4754.7,4754.5,0.3898]
[1755985990154,0.4541415,4754.6,4754.5,0.8627]
[1755985990331,0.4541415,4754.7,4754.5,0.8627]
[1755985990724,0.4541415,4754.6,4754.5,0.8627]
[1755985990966,0.4541415,4754.7,4754.5,0.8627]
[1755985992666,0.4541415,4754.7,4754.5,0.3898]
[1755985993863,0.4561415,4754.8,4754.5,0.3898]
[1755985994487,0.65318757,4754.8,4754.5,0.3898]
[1755985994638,0.19704607,4754.7,4754.5,0.3898]
[1755985994837,0.4561415,4754.8,4754.5,0.3898]
[1755985995474,0.4541415,4754.7,4754.5,0.3898]
[1755985995775,0.4561415,4754.8,4754.5,0.3898]
[1755985998338,0.4541415,4754.7,4754.5,0.3898]
[1755985998965,0.4561415,4754.8,4754.5,0.3898]
[1755985999179,0.002,4754.8,4754.5,0.3898]
[1755985999378,0.002,4754.8,4754.7,2.10318211]
[1755985999544,0.002,4754.8,4754.7,2.39258211]
[1755985999739,0.002,4754.8,4754.7,2.85168211]
[1755986000650,0.002,4754.8,4754.7,2.39258211]
[1755986001153,0.002,4754.8,4754.7,2.85274514]
[1755986005153,0.002,4754.8,4754.7,6.36174514]
[1755986005354,0.002,4754.8,4754.7,6.82084514]
[1755986005974,0.002,4754.8,4754.7,6.36174514]
[1755986008256,1.8030833,4754.8,4754.3,0.001]
[1755986008585,7.68258286,4754.4,4754.3,0.001]
[1755986008886,8.44388655,4754.4,4754.3,0.001]
[1755986009278,1.23370369,4754.4,4754.3,0.001]
[1755986009464,0.7798,4754.4,4754.3,0.001]
[1755986012382,0.3074,4754.4,4754.3,0.001]
[1755986012886,0.19701011,4754.6,4754.3,0.001]
[1755986014413,0.19701011,4754.6,4754.5,0.2894]
[1755986014583,0.32909823,4754.7,4754.6,2.10322634]
[1755986014779,0.002,4754.8,4754.6,5.90062634]
[1755986015104,0.002,4754.8,4754.7,2.56228211]
[1755986015412,0.002,4754.8,4754.7,2.85168211]
[1755986017074,0.002,4754.8,4754.7,2.39258211]
[1755986017391,0.002,4754.8,4754.7,3.69016013]
[1755986018269,0.002,4754.8,4754.7,3.79496013]
[1755986019807,0.002,4754.8,4754.7,5.41196013]
[1755986022477,0.002,4754.8,4754.7,6.07196013]
[1755986022881,0.002,4754.8,4754.7,9.07196013]
[1755986025990,0.002,4754.8,4754.7,13.32196013]
[1755986026178,0.002,4754.8,4754.7,13.21716013]
[1755986026375,0.002,4754.8,4754.7,13.32196013]
[1755986028000,0.002,4755.6,4754.7,13.32196013]
[1755986028001,0.002,4755.6,4755.0,2.76304942]
[1755986028201,1e-08,4755.3,4755.2,5.76296096]
[1755986028379,1e-08,4755.3,4755.2,9.56236096]
[1755986028571,1e-08,4755.3,4755.2,10.02146096]
[1755986028776,1e-08,4755.3,4755.2,11.66889142]
[1755986034313,1e-08,4755.3,4755.2,11.68039142]
[1755986038789,1e-08,4755.3,4755.2,11.20979142]
[1755986039288,1e-08,4755.3,4755.2,11.68039142]
[1755986040388,1e-08,4755.3,4755.2,11.20979142]
[1755986042790,1e-08,4755.3,4755.2,11.68039142]
[1755986043691,1e-08,4755.3,4755.2,15.93039142]
[1755986044717,1e-08,4755.3,4755.2,15.45979142]
[1755986046894,1e-08,4755.3,4755.2,15.17039142]
[1755986047297,1e-08,4755.3,4755.2,11.66039142]
[1755986047594,1e-08,4755.3,4755.2,15.16439142]
[1755986048015,1e-08,4755.3,4755.2,11.66039142]
[1755986048222,0.45000001,4755.3,4755.2,15.16439142]
[1755986048592,0.45000001,4755.3,4755.2,14.50439142]
[1755986049427,0.45000001,4755.3,4755.2,14.50939142]
[1755986064150,1e-08,4755.3,4755.2,14.50939142]
[1755986073226,0.002,4755.6,4755.5,2.1028283]
[1755986073428,0.002,4755.6,4755.5,10.19266418]
[1755986073757,0.2906,4755.6,4755.5,10.19266418]
[1755986075361,0.7602,4755.6,4755.5,10.19266418]
[1755986075747,0.7602,4755.6,4755.5,11.80966418]
[1755986078162,0.2906,4755.6,4755.5,11.80966418]
[1755986078552,0.7602,4755.6,4755.5,11.80966418]
[1755986079252,0.2906,4755.6,4755.5,11.80966418]
[1755986080262,0.002,4755.6,4755.5,11.80966418]
[1755986080963,0.7602,4755.6,4755.5,11.80966418]
[1755986081543,0.2906,4755.6,4755.5,11.80966418]
[1755986082160,0.002,4755.6,4755.5,11.80966418]
[1755986083559,0.002,4755.6,4755.5,12.12076418]
[1755986083733,0.2906,4755.6,4755.5,11.80966418]
[1755986085066,0.2906,4755.6,4755.5,16.05966418]
[1755986085365,0.002,4755.6,4755.5,16.05966418]
[1755986087865,0.002,4755.6,4755.5,11.80966418]
[1755986090086,0.3025,4755.6,4755.5,0.1048]
[1755986090378,8.40855498,4755.6,4755.5,3.6058]
[1755986090553,8.60599132,4755.6,4755.5,0.1048]
[1755986090758,9.0604898,4755.6,4755.5,0.1048]
[1755986091364,8.60599132,4755.6,4755.5,0.1048]
[1755986092173,8.40855498,4755.6,4755.5,0.1048]
[1755986092450,0.7306,4755.6,4755.5,0.1048]
[1755986100353,0.7306,4755.6,4755.5,3.6058]
[1755986101159,0.7306,4755.6,4755.5,0.1048]
[1755986101359,0.7306,4755.6,4755.5,3.6048]
[1755986114407,8.41238419,4755.6,4755.5,3.6048]
[1755986119211,8.60960083,4755.6,4755.5,3.6048]
[1755986119399,9.0645291,4755.6,4755.5,3.6048]
[1755986120312,9.26203671,4755.6,4755.5,3.6048]
[1755986121917,9.0645291,4755.6,4755.5,3.6048]
[1755986124614,9.06481988,4755.6,4755.5,3.6048]
[1755986125111,8.86731246,4755.6,4755.5,3.6048]
[1755986125418,9.06481978,4755.6,4755.5,3.6048]
[1755986127705,8.63671978,4755.6,4755.5,3.6048]
[1755986134428,8.6367158,4755.6,4755.5,3.6048]
[1755986134605,8.63671586,4755.6,4755.5,3.6048]
[1755986144532,8.6367135,4755.6,4755.5,3.6048]
[1755986144910,8.63671359,4755.6,4755.5,3.6048]
[1755986146506,8.33621359,4755.6,4755.5,3.8972]
[1755986148842,8.33621359,4755.6,4755.5,3.6048]
[1755986151324,8.63721359,4755.6,4755.5,3.6048]
[1755986152347,9.06801359,4755.6,4755.5,3.6048]
[1755986152849,8.63721359,4755.6,4755.5,3.6048]
[1755986153146,8.63721359,4755.6,4755.5,5.1348]
[1755986154244,8.6372155,4755.6,4755.5,5.1348]
[1755986154545,9.0680155,4755.6,4755.5,5.1348]
[1755986158750,8.6372155,4755.6,4755.5,5.1348]
[1755986162859,8.43971246,4755.6,4755.5,5.1348]
[1755986163069,8.63721821,4755.6,4755.5,5.1348]
[1755986163865,8.63721846,4755.6,4755.5,5.1348]
[1755986168633,8.63721846,4755.6,4755.5,1.6348]
[1755986168842,8.63721846,4755.6,4755.5,5.1318]
[1755986172844,8.63721844,4755.6,4755.5,5.1318]
[1755986173680,8.63721864,4755.6,4755.5,5.1318]
[1755986175447,8.63721946,4755.6,4755.5,5.1318]
[1755986179585,8.33621946,4755.6,4755.5,5.1318]
[1755986182788,8.13871246,4755.6,4755.5,5.1318]
[1755986183092,8.33621841,4755.6,4755.5,5.1318]
[1755986192598,8.13871246,4755.6,4755.5,5.1318]
[1755986192765,8.33621479,4755.6,4755.5,5.1318]
[1755986193089,8.13871246,4755.6,4755.5,5.1318]
[1755986193261,8.33621483,4755.6,4755.5,5.1318]
[1755986198594,8.33621483,4755.6,4755.5,1.6348]
[1755986198794,8.33621483,4755.6,4755.5,5.1308]
[1755986199198,8.33620976,4755.6,4755.5,5.1308]
[1755986202608,8.33621182,4755.6,4755.5,5.1308]
[1755986203394,8.33620744,4755.6,4755.5,5.1308]
[1755986209112,12.27089027,4755.6,4755.1,0.001]
[1755986209295,7.68178419,4754.9,4754.7,0.001]
[1755986209499,12.33559027,4754.9,4754.8,0.1058]
[1755986209684,12.76729027,4754.9,4754.8,0.1058]
[1755986212181,12.37231246,4754.9,4754.8,0.1058]
[1755986212382,12.56937948,4754.9,4754.8,0.1058]
[1755986213219,12.37231246,4754.9,4754.8,0.1058]
[1755986215191,12.37116407,4754.9,4754.8,0.1058]
[1755986217322,11.91738419,4754.9,4754.8,0.1058]
[1755986222035,12.37093655,4754.9,4754.8,0.1058]
[1755986227611,11.93923655,4754.9,4754.8,0.1058]
[1755986235167,12.1362622,4754.9,4754.8,0.1058]
[1755986236159,12.90057691,4754.9,4754.8,0.1058]
[1755986238155,12.33335206,4754.9,4754.8,0.1058]
[1755986240973,12.33414981,4754.9,4754.8,0.1058]
[1755986243842,4.65236562,4754.9,4754.8,0.1058]
[1755986245473,5.12586562,4754.9,4754.8,0.1058]
[1755986247378,5.12589972,4754.9,4754.8,0.1058]
[1755986248469,4.35549972,4754.9,4754.8,0.1058]
[1755986249067,4.66549972,4754.9,4754.8,0.1058]
[1755986249852,5.13899972,4754.9,4754.8,0.1058]
[1755986250052,5.89666001,4754.9,4754.8,0.1058]
[1755986250283,5.13899972,4754.9,4754.8,0.1058]
[1755986250585,4.94152604,4754.9,4754.8,0.1058]
[1755986250883,5.13901282,4754.9,4754.8,0.1058]
[1755986251285,5.13901402,4754.9,4754.8,0.1058]
[1755986251445,4.66551402,4754.9,4754.8,0.1058]
[1755986251649,4.35551402,4754.9,4754.8,0.1058]
[1755986251985,4.35051402,4754.9,4754.8,0.4142]
[1755986252169,4.15303319,4754.9,4754.8,0.1058]
[1755986252367,5.13402209,4754.9,4754.8,0.1058]
[1755986255484,4.66052209,4754.9,4754.8,0.1058]
[1755986256482,4.46303319,4754.9,4754.8,0.1058]
[1755986260590,4.46303583,4754.9,4754.8,0.1058]
[1755986261387,4.46303431,4754.9,4754.8,0.1058]
[1755986270316,4.26555236,4754.9,4754.8,0.1058]
[1755986270516,4.46303156,4754.9,4754.8,0.1058]
[1755986272595,4.15303156,4754.9,4754.8,0.1058]
[1755986280240,3.95555236,4754.9,4754.8,0.1058]
[1755986280394,4.15304766,4754.9,4754.8,0.1058]
[1755986280724,3.95555236,4754.9,4754.8,0.1058]
[1755986281025,4.15304766,4754.9,4754.8,0.1058]
[1755986282106,4.44584766,4754.9,4754.8,0.1058]
[1755986282630,4.44584966,4754.9,4754.8,0.1058]
[1755986289147,4.44583888,4754.9,4754.8,0.1058]
[1755986295817,4.44576111,4754.9,4754.8,0.1058]
[1755986299142,4.44576089,4754.9,4754.8,0.1058]
[1755986299658,4.4457579,4754.9,4754.8,0.1058]
[1755986304954,4.1529579,4754.9,4754.8,0.1058]
[1755986307254,4.1499579,4754.9,4754.8,0.1058]
[1755986307451,0.6509579,4754.9,4754.8,0.1058]
[1755986307621,3.69640554,4754.9,4754.8,0.1058]
[1755986307819,4.1499579,4754.9,4754.8,0.1058]
[1755986308969,4.14995144,4754.9,4754.8,0.1058]
[1755986309631,4.14995123,4754.9,4754.8,0.1058]
[1755986311163,0.65095123,4754.9,4754.8,0.1058]
[1755986311358,3.69639887,4754.9,4754.8,0.1058]
[1755986311541,4.14995123,4754.9,4754.8,0.1058]
[1755986317873,4.43635123,4754.9,4754.8,0.1058]
[1755986318966,4.43635392,4754.9,4754.8,0.1058]
[1755986319493,4.43635448,4754.9,4754.8,0.1058]
[1755986327680,3.43635448,4754.9,4754.8,0.1058]
[1755986328775,3.23895236,4754.9,4754.8,0.1058]
[1755986328977,3.43633943,4754.9,4754.8,0.1058]
[1755986332259,4.619,4755.6,4754.8,0.1058]
[1755986332260,0.56835835,4755.9,4755.5,1.3224888]
[1755986332467,1e-08,4756.4,4756.1,2.10254821]
[1755986332679,1e-08,4756.4,4756.3,13.4442588]
[1755986332894,0.02,4756.8,4756.7,2.10229781]
[1755986333185,0.02,4756.8,4756.7,9.98115447]
[1755986333358,0.02,4756.8,4756.7,12.98115447]
[1755986333688,0.02,4756.8,4756.7,16.50615447]
[1755986335889,0.4608,4758.8,4757.7,2.10185593]
[1755986336061,3.0,4758.8,4757.7,13.50571259]
[1755986336268,0.4608,4758.6,4757.7,5.8239284]
[1755986338766,0.4608,4758.6,4757.7,5.82232078]
[1755986339175,0.4608,4758.6,4757.7,5.82232789]
[1755986339361,0.4608,4758.4,4757.7,5.82232789]
[1755986339796,0.4608,4758.4,4757.7,6.46377483]
[1755986340164,0.002,4758.3,4757.7,6.46377483]
[1755986341900,0.7672,4757.8,4757.7,0.19547196]
[1755986342259,0.7672,4757.8,4757.7,0.30027196]
[1755986347396,0.7672,4757.8,4757.7,0.29979273]
[1755986348266,0.7672,4757.8,4757.7,0.29978875]
[1755986352676,0.7672,4757.8,4757.7,0.1048]
[1755986354325,0.7672,4757.8,4757.7,0.30007473]
[1755986357417,0.7672,4757.8,4757.7,0.30040054]
[1755986357837,0.7692,4757.8,4757.7,0.30040054]
[1755986358326,0.7692,4757.8,4757.7,0.30040179]
[1755986358925,0.7692,4757.8,4757.7,0.1048]
[1755986360727,0.7744,4757.8,4757.7,0.1048]
[1755986364151,0.7744,4757.8,4757.7,3.6178]
[1755986366423,0.7744,4757.8,4757.7,3.6168]
[1755986373036,0.97173042,4757.8,4757.7,3.6168]
[1755986374137,0.97173042,4757.8,4757.7,0.1048]
[1755986374326,1.33790346,4757.8,4757.7,0.1048]
[1755986377045,1.33779708,4757.8,4757.7,0.1048]
[1755986377613,1.33776538,4757.8,4757.7,0.1048]
[1755986379126,1.33776538,4757.8,4757.6,3.509]
[1755986379451,1.03573065,4757.7,4757.6,3.509]
[1755986379647,1.34343065,4757.7,4757.6,3.509]
[1755986381352,1.14623831,4757.7,4757.6,3.509]
[1755986385241,1.14623831,4757.7,4757.5,0.1048]
[1755986385446,0.70153831,4757.7,4757.5,0.1048]
[1755986385643,0.4447,4757.6,4757.5,0.1048]
[1755986385844,0.7524,4757.6,4757.5,0.1048]
[1755986388124,0.39383831,4757.7,4757.5,0.1048]
[1755986388451,0.022,4757.8,4757.5,0.1048]
[1755986388655,0.4555,4757.7,4757.5,0.1048]
[1755986388952,0.3106,4757.6,4757.5,0.1048]
[1755986389155,0.7661,4757.6,4757.5,0.1048]
[1755986403768,0.4555,4757.6,4757.5,0.1048]
[1755986405280,0.35088142,4757.8,4757.5,0.1048]
[1755986406069,0.35088142,4757.8,4757.5,7.77656003]
[1755986406280,0.35088142,4757.8,4757.6,3.502]
[1755986406977,0.002,4757.7,4757.6,3.502]
[1755986410061,0.4575,4757.7,4757.6,3.502]
[1755986410273,0.002,4757.7,4757.6,3.502]
[1755986417796,0.002,4757.7,4757.6,4.84005913]
[1755986423385,0.002,4757.7,4757.6,6.94195924]
[1755986423570,0.002,4757.7,4757.6,7.04675924]
[1755986433436,0.002,4757.7,4757.6,9.94195924]
[1755986433619,0.002,4757.7,4757.6,10.04675924]
[1755986435337,0.002,4757.7,4757.6,10.70675924]
[1755986436308,2.692,4758.2,4757.9,2.10174616]
[1755986436507,2.692,4758.2,4758.1,2.10167924]
[1755986436843,2.692,4758.2,4758.1,2.20647924]
[1755986438441,2.692,4758.2,4758.1,5.20647924]
[1755986438750,2.692,4758.2,4758.1,18.02036685]
[1755986443950,2.9889,4758.2,4758.1,18.02336685]
[1755986444149,2.9889,4758.2,4758.1,20.16524485]
[1755986444150,3.4481,4758.2,4758.1,20.16524485]
[1755986444343,2.692,4758.2,4758.1,20.16524485]
[1755986445980,0.002,4758.2,4758.1,20.16524485]
[1755986446141,0.002,4758.6,4758.5,2.10150257]
[1755986446340,0.002,4758.6,4758.5,10.74638057]
[1755986446576,0.002,4758.6,4758.5,10.85118057]
[1755986447380,0.002,4758.6,4758.5,20.16406818]
[1755986458371,0.002,4758.6,4758.5,18.51444295]
[1755986464316,0.7679,4758.6,4758.5,18.51244295]
[1755986472534,0.002,4758.6,4758.5,18.51244295]
[1755986473125,0.4658,4758.6,4758.5,18.51244295]
[1755986475917,0.002,4758.6,4758.5,18.51244295]
[1755986476441,0.4658,4758.6,4758.5,18.51244295]
[1755986477603,0.002,4758.6,4758.5,19.17244295]
[1755986477924,1e-08,4758.7,4758.6,5.76145841]
[1755986478128,1e-08,4758.7,4758.6,7.90333641]
[1755986478542,0.76590001,4758.7,4758.6,5.85933641]
[1755986478847,0.76590001,4758.7,4758.6,14.87872079]
[1755986479017,0.76590001,4758.7,4758.6,12.77726238]
[1755986479213,0.76590001,4758.7,4758.6,9.27926238]
[1755986479408,0.76590001,4758.7,4758.6,12.31726238]
[1755986479612,0.76590001,4758.7,4758.6,8.80426238]
[1755986479943,0.76590001,4758.7,4758.6,14.41872079]
[1755986481044,0.76590001,4758.7,4758.6,8.80426238]
[1755986481209,0.76590001,4758.7,4758.6,12.31726238]
[1755986481414,0.76590001,4758.7,4758.6,4.654]
[1755986482241,0.76590001,4758.7,4758.6,6.75545841]
[1755986483139,0.76590001,4758.7,4758.6,4.654]
[1755986483636,0.76590001,4758.7,4758.6,1.141]
[1755986483842,0.76590001,4758.7,4758.6,4.653]
[1755986484629,0.76590001,4758.7,4758.3,2.10258536]
[1755986484840,0.4604,4758.6,4758.3,0.001]
[1755986485039,0.4604,4758.6,4758.4,3.512]
[1755986485338,0.3033,4758.5,4758.4,3.512]
[1755986485718,0.7637,4758.5,4758.4,3.512]
[1755986487910,0.7637,4758.5,4758.4,3.511]
[1755986488737,0.7637,4758.5,4758.4,3.6158]
[1755986493144,0.7637,4758.5,4758.4,0.1048]
[1755986493355,0.7637,4758.5,4758.4,3.6148]
[1755986493554,1.05020457,4758.5,4758.4,3.6148]
[1755986494139,0.7637,4758.5,4758.4,3.6148]
[1755986497343,0.7637,4758.5,4758.4,3.6158]
[1755986497521,0.7637,4758.5,4758.4,0.1048]
[1755986497726,0.7637,4758.5,4758.4,3.51]
[1755986499050,0.7637,4758.5,4758.3,0.001]
[1755986499255,0.3033,4758.5,4758.3,0.001]
[1755986499478,0.4604,4758.4,4758.3,0.001]
[1755986499766,0.7637,4758.4,4758.3,0.001]
[1755986499947,2.86524673,4758.4,4758.3,0.001]
[1755986500150,5.86524673,4758.4,4758.3,0.001]
[1755986500763,6.52524673,4758.4,4758.3,0.001]
[1755986501135,0.3033,4758.4,4758.3,0.001]
[1755986501341,0.7637,4758.4,4758.3,0.001]
[1755986508258,0.89404463,4758.7,4758.3,0.001]
[1755986508430,0.3033,4758.4,4758.3,0.001]
[1755986508626,0.7782,4758.4,4758.3,0.001]
[1755986508859,0.89938446,4758.4,4758.3,0.001]
[1755986510538,0.32884463,4758.7,4758.3,0.2947]
[1755986510740,0.32884463,4758.7,4758.6,0.1048]
[1755986511049,1e-08,4758.7,4758.6,0.3985]
[1755986511473,1e-08,4758.7,4758.6,2.94785841]
[1755986511767,1e-08,4758.7,4758.6,3.96590256]
[1755986513158,1e-08,4758.7,4758.6,7.03300256]
[1755986513548,1e-08,4758.7,4758.6,7.48090256]
[1755986518082,1e-08,4758.7,4758.6,10.48090256]
[1755986519558,1e-08,4758.7,4758.6,11.14090256]
[1755986520646,1e-08,4759.2,4759.0,2.10128178]
[1755986520841,1e-08,4759.2,4759.1,18.74063907]
[1755986521041,1e-08,4759.2,4759.1,18.84543907]
[1755986521263,1e-08,4759.2,4759.1,19.29333907]
[1755986523756,1e-08,4759.2,4759.1,19.95333907]
[1755986524774,1e-08,4759.2,4759.1,6.0098658]
[1755986524974,1e-08,4759.2,4759.1,9.2351658]
[1755986525174,0.28950001,4759.2,4759.1,5.7161658]
[1755986525383,0.76440001,4759.2,4759.1,9.2361658]
[1755986529086,1e-08,4759.2,4759.1,9.2361658]
[1755986532999,1e-08,4759.2,4759.1,9.5298658]
[1755986533404,1e-08,4759.2,4759.1,19.29633907]
[1755986535630,1e-08,4759.2,4759.1,18.84843907]
[1755986535784,1e-08,4759.2,4759.1,19.29633907]
[1755986537286,1e-08,4759.2,4759.1,19.95633907]
[1755986541112,0.02,4759.8,4759.7,2.10097275]
[1755986541341,0.02,4759.8,4759.7,17.67334722]
[1755986541729,0.02,4759.8,4759.7,18.10174722]
[1755986543334,0.02,4759.8,4759.7,17.67334722]
[1755986544214,0.8059,4759.8,4759.7,17.37654722]
[1755986546130,0.02,4759.8,4759.7,17.37654722]
[1755986547139,0.02,4759.8,4759.7,17.37554722]
[1755986548715,0.02,4759.8,4759.7,13.85954722]
[1755986548928,0.02,4759.8,4759.7,17.37554722]
[1755986549947,0.02,4759.8,4759.7,17.37454722]
[1755986552344,0.02,4759.8,4759.7,21.62454722]
[1755986553329,0.02,4759.8,4759.7,21.92034722]
[1755986555360,0.022,4759.8,4759.7,21.92034722]
[1755986555727,0.022,4759.8,4759.7,21.62454722]
[1755986560161,0.022,4759.8,4759.7,21.92034722]
[1755986560460,0.022,4759.8,4759.7,25.34874722]
[1755986560670,0.002,4760.2,4760.1,2.1007962]
[1755986560880,0.002,4760.2,4760.1,11.0494742]
[1755986561072,0.002,4760.2,4760.1,8.3032742]
[1755986561381,0.002,4760.2,4760.1,21.13284747]
[1755986562572,0.002,4760.2,4760.1,21.56124747]
[1755986563586,0.02,4760.8,4760.7,2.10053143]
[1755986563773,0.02,4760.8,4760.7,8.04724449]
[1755986565063,0.02,4760.8,4760.7,12.29724449]
[1755986565471,0.02,4760.8,4760.7,8.04724449]
[1755986565685,0.02,4760.8,4760.7,21.02581776]
[1755986565874,0.02,4760.8,4760.7,21.45421776]
[1755986566076,0.02,4760.8,4760.7,21.02581776]
[1755986568303,1e-08,4760.8,4760.7,21.45421776]
[1755986572882,1e-08,4760.8,4760.7,21.02581776]
[1755986573088,1e-08,4760.8,4760.7,21.45651776]
[1755986574586,1e-08,4760.8,4760.7,12.13794449]
[1755986576591,1e-08,4760.8,4760.7,14.35494449]
[1755986576794,1e-08,4760.8,4760.7,12.13794449]
[1755986577180,1e-08,4760.8,4760.7,11.70724449]
[1755986577510,1e-08,4760.8,4760.7,12.13794449]
[1755986578380,1e-08,4760.8,4760.7,11.70424449]
[1755986580209,1e-08,4761.4,4761.3,2.10026673]
[1755986580411,0.29060001,4761.4,4761.3,9.32832682]
[1755986580727,0.29060001,4761.4,4761.3,9.43312682]
[1755986581510,0.2906,4761.4,4761.3,6.58512682]
[1755986581727,0.2906,4761.4,4761.3,6.43212682]
[1755986582080,0.632,4761.4,4761.3,2.20506673]
[1755986582379,0.632,4761.4,4761.3,5.71406673]
[1755986582585,0.632,4761.4,4761.3,3.6138]
[1755986584217,0.2906,4761.4,4761.3,5.71406673]
[1755986584390,0.632,4761.4,4761.3,5.71406673]